fUSD/lending_fUSD_20250120
["ID","MTS","AMOUNT","RATE_DAILY","PERIOD"]
[349679266,1737372638862,-500.0,0.00021121,2]
[349679267,1737372638871,-500.0,0.00021121,2]
[349679268,1737372638881,-500.0,0.00021121,2]
[349679269,1737372638891,-500.0,0.00021121,2]
[349679270,1737372638900,-500.0,0.00021121,2]
[349679271,1737372638917,-500.0,0.00021121,2]
[349679272,1737372638926,-500.0,0.00021121,2]
[349679273,1737372638936,-500.0,0.00021121,2]
[349679274,1737372638946,-500.0,0.00021121,2]
[349679275,1737372638956,-500.0,0.00021121,2]
[349679276,1737372638965,-500.0,0.00021121,2]
[349679277,1737372638975,-500.0,0.00021121,2]
[349679278,1737372638984,-500.0,0.00021121,2]
[349679279,1737372638994,-500.0,0.00021121,2]
[349679280,1737372639004,-3821.11730196,0.00021121,2]
[349679281,1737372639013,-11663.78186006,0.00021129,2]
[349679282,1737372639023,-211.12101379,0.00021167,2]
[349679283,1737372639033,-310.45502609,0.00021173,2]
[349679284,1737372639044,-1000.0,0.000212,7]
[349679285,1737372639053,-200.0,0.0002121,2]
[349679286,1737372639063,-1350.43898268,0.00021216,2]
[349679287,1737372639073,-997.96413052,0.00021233,2]
[349679288,1737372639094,-1855.68172605,0.00021233,2]
[349679289,1737372639105,-967.47144539,0.00021233,2]
[349679290,1737372639115,-211.12101379,0.00021233,2]
[349679291,1737372639124,-588.3,0.00021263,2]
[349679292,1737372639134,-588.3,0.00021263,2]
[349679293,1737372639143,-173.53999996,0.00021272,2]
[349679294,1737372639153,-500.0,0.00021272,2]
[349679295,1737372639166,-500.0,0.00021272,2]
[349679296,1737372639175,-500.0,0.00021272,2]
[349679297,1737372639185,-518.47,0.00021272,2]
[349679298,1737372639194,-500.0,0.00021272,2]
[349679299,1737372639203,-557.35,0.00021272,2]
[349679300,1737372639213,-535.42,0.00021272,2]
[349679301,1737372639222,-500.0,0.00021272,2]
[349679302,1737372639232,-500.0,0.00021272,2]
[349679303,1737372639242,-500.0,0.00021272,2]
[349679304,1737372639251,-500.0,0.00021272,2]
[349679305,1737372639261,-500.0,0.00021272,2]
[349679306,1737372639271,-500.0,0.00021272,2]
[349679307,1737372639280,-500.0,0.00021272,2]
[349679308,1737372639288,-539.19,0.00021272,2]
[349679309,1737372639298,-500.0,0.00021272,2]
[349679310,1737372639308,-500.0,0.00021272,2]
[349679311,1737372639318,-500.0,0.00021272,2]
[349679312,1737372639328,-500.0,0.00021272,2]
[349679313,1737372639337,-500.0,0.00021272,2]
[349679314,1737372639347,-500.0,0.00021272,2]
[349679315,1737372639356,-638.66,0.00021272,2]
[349679316,1737372639366,-500.0,0.00021272,2]
[349679317,1737372639375,-500.0,0.00021272,2]
[349679318,1737372639385,-500.0,0.00021272,2]
[349679319,1737372639394,-500.0,0.00021272,2]
[349679320,1737372639404,-500.0,0.00021272,2]
[349679321,1737372639414,-500.0,0.00021273,2]
[349679322,1737372639424,-500.0,0.00021273,2]
[349679323,1737372639434,-500.0,0.00021273,2]
[349679324,1737372639444,-579.89224231,0.00021273,2]
[349679325,1737372639644,-538.63614265,0.00021273,2]
[349679326,1737372639656,-500.0,0.00021273,2]
[349679327,1737372639667,-500.0,0.00021273,2]
[349679328,1737372639676,-500.0,0.00021273,2]
[349679329,1737372639685,-500.0,0.00021273,2]
[349679330,1737372639695,-500.0,0.00021273,2]
[349679331,1737372639704,-500.0,0.00021273,2]
[349679332,1737372639714,-561.88,0.00021273,2]
[349679333,1737372639723,-500.0,0.00021273,2]
[349679334,1737372639732,-167.24954552,0.00021273,2]
[349679335,1737372639757,-332.75045448,0.00021273,2]
[349679336,1737372639767,-356.814683,0.00021273,2]
[349679337,1737372639776,-500.0,0.00021273,2]
[349679338,1737372639786,-626.7856651,0.00021273,2]
[349679339,1737372639795,-500.0,0.00021273,2]
[349679340,1737372639805,-583.052095,0.00021273,2]
[349679341,1737372639814,-552.21,0.00021273,2]
[349679342,1737372639824,-500.0,0.00021273,2]
[349679343,1737372639834,-500.0,0.00021273,2]
[349679344,1737372639843,-641.65,0.00021273,2]
[349679345,1737372639852,-500.0,0.00021273,2]
[349679346,1737372639862,-500.0,0.00021273,2]
[349679347,1737372639871,-618.69,0.00021273,2]
[349679348,1737372639880,-548.87,0.00021273,2]
[349679349,1737372639890,-519.4,0.00021273,2]
[349679350,1737372639899,-554.7,0.00021273,2]
[349679351,1737372639908,-500.0,0.00021273,2]
[349679352,1737372639918,-500.0,0.00021273,2]
[349679353,1737372639927,-500.0,0.00021273,2]
[349679355,1737372639937,-560.45,0.00021273,2]
[349679356,1737372639946,-500.0,0.00021273,2]
[349679357,1737372639956,-500.0,0.00021273,2]
[349679358,1737372639965,-500.0,0.00021273,2]
[349679359,1737372639975,-500.0,0.00021273,2]
[349679360,1737372639985,-722.41751708,0.00021273,2]
[349679361,1737372640001,-72.22248292,0.00021273,2]
[349679362,1737372640011,-500.0,0.00021273,2]
[349679363,1737372640020,-138.67300925,0.00021273,2]
[349679379,1737372640352,-500.0,0.00020999,2]
[349679380,1737372640362,-441.68,0.00020999,2]
[349679381,1737372640380,-58.32,0.00020999,2]
[349679382,1737372640389,-361.32699075,0.00021273,2]
[349679383,1737372640399,-1003.33,0.00021273,2]
[349679384,1737372640409,-500.0,0.00021273,2]
[349679385,1737372640419,-741.16,0.00021273,2]
[349679386,1737372640428,-500.0,0.00021273,2]
[349679387,1737372640437,-1230.86,0.00021273,2]
[349679388,1737372640447,-949.63,0.00021273,2]
[349679389,1737372640456,-571.23,0.00021273,2]
[349679390,1737372640465,-500.0,0.00021273,2]
[349679391,1737372640474,-1868.94,0.00021273,2]
[349679392,1737372640484,-620.22,0.00021273,2]
[349679393,1737372640493,-500.0,0.00021273,2]
[349679394,1737372640503,-780.83,0.00021273,2]
[349679395,1737372640512,-500.0,0.00021273,2]
[349679396,1737372640521,-500.0,0.00021273,2]
[349679397,1737372640531,-622.6,0.00021273,2]
[349679398,1737372640542,-500.0,0.00021273,2]
[349679399,1737372640552,-544.77724303,0.00021273,2]
[349679400,1737372640567,-1428.29275697,0.00021273,2]
[349679401,1737372640577,-552.95,0.00021273,2]
[349679402,1737372640586,-1088.57,0.00021273,2]
[349679403,1737372640595,-500.0,0.00021273,2]
[349679404,1737372640604,-500.0,0.00021273,2]
[349679405,1737372640613,-1000.0,0.00021273,2]
[349679406,1737372640622,-500.0,0.00021273,2]
[349679407,1737372640631,-572.45,0.00021273,2]
[349679408,1737372640640,-837.4,0.00021273,2]
[349679409,1737372640649,-500.0,0.00021273,2]
[349679410,1737372640661,-500.0,0.00021273,2]
[349679411,1737372640671,-500.0,0.00021273,2]
[349679412,1737372640680,-570.86,0.00021273,2]
[349679413,1737372640689,-557.1,0.00021273,2]
[349679414,1737372640698,-500.0,0.00021273,2]
[349679415,1737372640707,-647.82,0.00021273,2]
[349679416,1737372640716,-502.37,0.00021273,2]
[349679417,1737372640726,-500.0,0.00021273,2]
[349679418,1737372640735,-4367.75,0.00021273,2]
[349679419,1737372640744,-1712.84,0.00021273,2]
[349679420,1737372640753,-695.96,0.00021273,2]
[349679421,1737372640763,-1323.04,0.00021273,2]
[349679422,1737372640771,-3959.21,0.00021273,2]
[349679423,1737372640781,-3843.05,0.00021273,2]
[349679424,1737372640790,-500.0,0.00021273,2]
[349679425,1737372640801,-890.26,0.00021273,2]
[349679426,1737372640810,-500.0,0.00021273,2]
[349679427,1737372640819,-4062.8,0.00021273,2]
[349679428,1737372640828,-880.76,0.00021273,2]
[349679429,1737372640837,-1589.32,0.00021273,2]
[349679430,1737372640846,-825.91,0.00021273,2]
[349679431,1737372640855,-500.0,0.00021273,2]
[349679432,1737372640863,-500.0,0.00021273,2]
[349679433,1737372640872,-500.0,0.00021273,2]
[349679434,1737372640881,-4097.66,0.00021273,2]
[349679435,1737372640890,-776.75,0.00021273,2]
[349679436,1737372640899,-500.0,0.00021273,2]
[349679437,1737372640911,-629.85,0.00021273,2]
[349679438,1737372640920,-500.0,0.00021273,2]
[349679439,1737372640929,-500.0,0.00021273,2]
[349679441,1737372640938,-2132.03,0.00021273,2]
[349679443,1737372640947,-685.23,0.00021273,2]
[349679445,1737372640957,-585.47,0.00021273,2]
[349679447,1737372640966,-500.0,0.00021273,2]
[349679449,1737372640975,-557.57,0.00021273,2]
[349679451,1737372640984,-500.0,0.00021273,2]
[349679453,1737372640993,-1070.88,0.00021273,2]
[349679455,1737372641002,-500.0,0.00021273,2]
[349679457,1737372641012,-2398.5719247,0.00021273,2]
[349679458,1737372641077,-213.6480753,0.00021273,2]
[349679459,1737372641086,-436.20093799,0.00021273,2]
[349679460,1737372641102,-63.79906201,0.00021273,2]
[349679461,1737372641111,-480.54567645,0.00021273,2]
[349679462,1737372641167,-283.67432355,0.00021273,2]
[349679463,1737372641177,-500.0,0.00021273,2]
[349679464,1737372641187,-83.83713697,0.00021273,2]
[349679493,1737372643244,-500.0,0.00020999,2]
[349679495,1737372643254,-416.16286303,0.00021273,2]
[349679497,1737372643263,-500.0,0.00021273,2]
[349679499,1737372643273,-579.89,0.00021273,2]
[349679502,1737372643283,-2686.49,0.00021273,2]
[349679503,1737372643292,-426.76980053,0.00021273,2]
[349679506,1737372643303,-378.06019947,0.00021273,2]
[349679507,1737372643312,-500.0,0.00021273,2]
[349679510,1737372643322,-500.0,0.00021273,2]
[349679512,1737372643332,-809.59,0.00021273,2]
[349679514,1737372643342,-791.11,0.00021273,2]
[349679515,1737372643351,-1709.59,0.00021273,2]
[349679517,1737372643360,-500.0,0.00021273,2]
[349679519,1737372643369,-500.0,0.00021273,2]
[349679521,1737372643378,-599.69,0.00021273,2]
[349679523,1737372643387,-997.88,0.00021273,2]
[349679525,1737372643396,-1686.18,0.00021273,2]
[349679527,1737372643405,-500.0,0.00021273,2]
[349679529,1737372643417,-1019.11,0.00021273,2]
[349679532,1737372643427,-500.0,0.00021273,2]
[349679533,1737372643437,-1217.98,0.00021273,2]
[349679534,1737372643446,-500.0,0.00021273,2]
[349679535,1737372643455,-3635.96,0.00021273,2]
[349679536,1737372643465,-879.36,0.00021273,2]
[349679537,1737372643474,-764.48,0.00021273,2]
[349679538,1737372643483,-1113.95,0.00021273,2]
[349679539,1737372643493,-500.0,0.00021273,2]
[349679540,1737372643502,-500.0,0.00021273,2]
[349679541,1737372643511,-1572.85,0.00021273,2]
[349679542,1737372643521,-1642.69,0.00021273,2]
[349679543,1737372643529,-500.0,0.00021273,2]
[349679544,1737372643539,-1067.3,0.00021273,2]
[349679545,1737372643549,-1094.18,0.00021273,2]
[349679546,1737372643561,-3120.81,0.00021273,2]
[349679547,1737372643570,-500.0,0.00021273,2]
[349679548,1737372643579,-470.64406514,0.00021273,2]
[349679549,1737372643589,-678.99,0.00021273,2]
[349679550,1737372643599,-2012.38,0.00021273,2]
[349679551,1737372643608,-650.1,0.00021273,2]
[349679552,1737372643618,-500.0,0.00021273,2]
[349679553,1737372643628,-500.0,0.00021273,2]
[349679554,1737372643638,-500.0,0.00021273,2]
[349679555,1737372643647,-539.63,0.00021273,2]
[349679556,1737372643657,-1818.14,0.00021273,2]
[349679557,1737372643668,-1915.77,0.00021273,2]
[349679558,1737372643677,-500.0,0.00021273,2]
[349679559,1737372643687,-500.0,0.00021273,2]
[349679560,1737372643696,-685.17,0.00021273,2]
[349679561,1737372643706,-815.91,0.00021273,2]
[349679562,1737372643715,-500.0,0.00021273,2]
[349679563,1737372643724,-852.79,0.00021273,2]
[349679564,1737372643734,-500.0,0.00021273,2]
[349679565,1737372643743,-500.0,0.00021273,2]
[349679566,1737372643752,-500.0,0.00021273,2]
[349679567,1737372643762,-748.94,0.00021273,2]
[349679568,1737372643771,-1080.42,0.00021273,2]
[349679569,1737372643780,-500.0,0.00021273,2]
[349679570,1737372643790,-2511.36,0.00021273,2]
[349679572,1737372643799,-500.0,0.00021273,2]
[349679573,1737372643808,-500.0,0.00021273,2]
[349679574,1737372643817,-818.25,0.00021273,2]
[349679575,1737372643827,-500.0,0.00021273,2]
[349679576,1737372643836,-500.0,0.00021273,2]
[349679577,1737372643845,-32305.52755111,0.000213,2]
[349679578,1737372643854,-715.02119668,0.000213,7]
[349679579,1737372643867,-484.97880332,0.000213,7]
[349679580,1737372643877,-1350.43898268,0.00021314,2]
[349679581,1737372643887,-310.45502609,0.00021318,2]
[349679582,1737372643896,-1863.0,0.00021339,2]
[349679583,1737372643906,-907.0,0.00021339,2]
[349679584,1737372643916,-1260.0,0.00021339,2]
[349679585,1737372643926,-781.0,0.00021339,2]
[349679586,1737372643936,-150.0,0.00021339,2]
[349679587,1737372643946,-2745.69478907,0.00021339,2]
[349679588,1737372643959,-1005.87376395,0.00021339,2]
[349679589,1737372643979,-139.43144698,0.00021339,2]
[349679590,1737372643988,-637.0,0.00021339,2]
[349679591,1737372643997,-2023.343,0.00021339,2]
[349679592,1737372644007,-1269.0,0.00021339,2]
[349679593,1737372644016,-636.0,0.00021339,2]
[349679594,1737372644026,-455.22555322,0.00021344,2]
[349679595,1737372644037,-668.0,0.00021344,2]
[349679602,1737372646248,-173.090743,0.00020999,2]
[349679603,1737372646258,-500.0,0.00020999,2]
[349679604,1737372646268,-679.4,0.00020999,2]
[349679605,1737372646277,-1713.2,0.00020999,2]
[349679606,1737372646287,-225.52749592,0.00021273,2]
[349679607,1737372646358,-274.47250408,0.00021273,2]
[349679608,1737372646367,-679.4,0.00021273,2]
[349679609,1737372646377,-345.73240842,0.00021273,2]
[349679610,1737372646389,-1367.46759158,0.00021273,2]
[349679611,1737372646398,-112.70510776,0.00021276,2]
[349679612,1737372646410,-81.77689224,0.00021276,2]
[349679613,1737372646420,-1514.60440776,0.00021344,2]
[349679614,1737372646467,-329.37435788,0.00021344,2]
[349679615,1737372646524,-853.9129831,0.00021344,2]
[349679616,1737372646534,-201.0,0.0002137,5]
[349679617,1737372646544,-152.0,0.00021371,3]
[349679618,1737372646556,-204.0,0.0002139,2]
[349679619,1737372646566,-500.0,0.00021395,2]
[349679620,1737372646576,-500.0,0.00021395,2]
[349679621,1737372646586,-500.0,0.00021395,2]
[349679622,1737372646595,-533.52,0.00021395,2]
[349679623,1737372646606,-500.0,0.00021395,2]
[349679624,1737372646615,-500.0,0.00021395,2]
[349679625,1737372646624,-500.0,0.00021395,2]
[349679626,1737372646634,-500.0,0.00021395,2]
[349679627,1737372646644,-500.0,0.00021395,2]
[349679628,1737372646654,-287.69357273,0.00021395,2]
[349679629,1737372646666,-568.26344229,0.00021395,2]
[349679630,1737372646676,-500.0,0.00021395,2]
[349679631,1737372646686,-500.0,0.00021395,2]
[349679632,1737372646695,-500.0,0.00021395,2]
[349679633,1737372646705,-451.52926538,0.00021395,2]
[349679634,1737372646714,-506.99809768,0.00021395,2]
[349679635,1737372646724,-500.0,0.00021395,2]
[349679636,1737372646733,-500.0,0.00021395,2]
[349679637,1737372646743,-500.0,0.00021395,2]
[349679638,1737372646753,-500.0,0.00021395,2]
[349679639,1737372646763,-209.9666262,0.00021395,2]
[349679640,1737372646771,-500.0,0.00021395,2]
[349679641,1737372646781,-500.0,0.00021395,2]
[349679642,1737372646791,-500.0,0.00021395,2]
[349679643,1737372646801,-505.78132252,0.00021395,2]
[349679644,1737372646811,-503.13034414,0.00021395,2]
[349679645,1737372646820,-362.26724976,0.00021395,2]
[349679646,1737372646830,-500.0,0.00021395,2]
[349679647,1737372646839,-500.0,0.00021395,2]
[349679648,1737372646848,-500.0,0.00021395,2]
[349679649,1737372646858,-500.0,0.00021395,2]
[349679650,1737372646869,-500.0,0.00021395,2]
[349679651,1737372646879,-500.0,0.00021395,2]
[349679652,1737372646889,-151.32149061,0.000214,2]
[349679653,1737372646899,-200.0,0.000214,7]
[349679654,1737372646909,-112.92468036,0.000214,2]
[349679655,1737372646941,-387.07531964,0.000214,2]
[349679656,1737372646951,-1258.51794536,0.00021401,2]
[349679664,1737373095916,170.16,0.00010137,2]
[349679671,1737373832512,-500.0,0.00018164,2]
[349679672,1737373832521,-41.75,0.00018164,2]
[349679673,1737373832721,-461.17242538,0.00018164,2]
[349679674,1737373832731,-500.0,0.00018164,2]
[349679675,1737373832740,-701.77,0.00018258,2]
[349679676,1737373832749,-294.45,0.00019944,2]
[349679677,1737373832760,-419.53,0.00019987,2]
[349679678,1737373832770,-206.87,0.00020005,2]
[349679679,1737373832779,-250.0,0.00020211,2]
[349679680,1737373832789,-1000.0,0.00020257,2]
[349679681,1737373832798,-461.33,0.00020267,30]
[349679682,1737373832807,-250.0,0.00020277,2]
[349679683,1737373832818,-160.231,0.0002033,2]
[349679684,1737373832827,-500.0,0.00020356,2]
[349679685,1737373832837,-701.77,0.00020522,2]
[349679686,1737373832846,-814.31924459,0.000206,2]
[349679687,1737373832857,-1112.68075541,0.000206,2]
[349679688,1737373832867,-172.2,0.00020782,2]
[349679689,1737373832876,-267.66888075,0.00020785,2]
[349679690,1737373832886,-2220.32533663,0.00020787,2]
[349679691,1737373832896,-200.0,0.0002079,2]
[349679692,1737373832909,-390.86574108,0.00020799,2]
[349679693,1737373832918,-213.98905911,0.00020806,2]
[349679694,1737373832928,-698.30881851,0.00020815,2]
[349679695,1737373832938,-390.86574108,0.00020815,2]
[349679696,1737373832947,-408.43479192,0.00020818,2]
[349679697,1737373832956,-2220.32533663,0.00020821,2]
[349679698,1737373832968,-2220.32533663,0.00020829,2]
[349679699,1737373832978,-698.30881851,0.00020833,2]
[349679700,1737373832988,-200.0,0.00020835,2]
[349679701,1737373832997,-267.66888075,0.00020838,2]
[349679702,1737373833006,-213.98905911,0.00020849,2]
[349679703,1737373833015,-698.30881851,0.0002085,2]
[349679704,1737373833025,-200.0,0.00020857,2]
[349679705,1737373833036,-2238.17607962,0.00020858,2]
[349679706,1737373833046,-2220.32533663,0.0002086,2]
[349679707,1737373833056,-2220.32533663,0.00020864,2]
[349679708,1737373833066,-267.66888075,0.00020866,2]
[349679709,1737373833075,-408.43479192,0.00020871,2]
[349679710,1737373833085,-698.30881851,0.00020872,2]
[349679711,1737373833095,-200.0,0.00020876,2]
[349679712,1737373833104,-267.66888075,0.00020881,2]
[349679713,1737373833114,-213.98905911,0.00020883,2]
[349679714,1737373833124,-2238.17607962,0.00020887,2]
[349679715,1737373833134,-200.0,0.00020892,2]
[349679716,1737373833144,-390.86574108,0.00020893,2]
[349679717,1737373833153,-200.0,0.00020894,2]
[349679718,1737373833162,-151.24682486,0.00020899,2]
[349679719,1737373833172,-164.71763715,0.000209,2]
[349679720,1737373833182,-960.31216552,0.000209,2]
[349679721,1737373833192,-358.945992,0.000209,2]
[349679722,1737373833201,-200.0,0.00020903,2]
[349679723,1737373833210,-408.43479192,0.00020905,2]
[349679724,1737373833223,-390.86574108,0.00020908,2]
[349679725,1737373833233,-2238.17607962,0.00020908,2]
[349679726,1737373833242,-408.43479192,0.00020908,2]
[349679727,1737373833252,-200.0,0.00020912,2]
[349679728,1737373833262,-285.37268318,0.00020913,2]
[349679729,1737373833286,-123.06210874,0.00020913,2]
[349679730,1737373833295,-181.42029126,0.00020914,2]
[349679732,1737373838384,-18.57970874,0.00020914,2]
[349679733,1737373838395,-213.98905911,0.00020917,2]
[349679734,1737373838404,-418.33364111,0.00020917,2]
[349679787,1737373840428,-279.9751774,0.00020917,2]
[349679788,1737373840438,-213.98905911,0.00020919,2]
[349679789,1737373840449,-200.0,0.00020919,2]
[349679790,1737373840459,-200.0,0.0002092,2]
[349679791,1737373840471,-2238.17607962,0.00020924,2]
[349679792,1737373840481,-200.0,0.00020924,2]
[349679793,1737373840490,-200.0,0.00020926,2]
[349679794,1737373840500,-200.0,0.00020927,2]
[349679795,1737373840509,-390.86574108,0.00020932,2]
[349679796,1737373840519,-358.94599176,0.00020934,2]
[349679797,1737373840529,-267.66888075,0.00020939,2]
[349679798,1737373840539,-2238.17607962,0.00020947,2]
[349679799,1737373840549,-358.94599176,0.00020969,2]
[349679800,1737373840559,-501.3546749,0.00020972,2]
[349679801,1737373840568,-179.43852401,0.0002099,2]
[349679802,1737373840577,-153.14,0.0002099,2]
[349679803,1737373840586,-395.309,0.00020998,2]
[349679804,1737373840596,-500.0,0.00020998,2]
[349679805,1737373840605,-500.0,0.00020998,2]
[349679806,1737373840615,-500.0,0.00020998,2]
[349679807,1737373840625,-500.0,0.00020998,2]
[349679808,1737373840635,-271.74689622,0.00020998,2]
[349679809,1737373840644,-500.0,0.00020998,2]
[349679810,1737373840654,-500.0,0.00020998,2]
[349679811,1737373840664,-500.0,0.00020998,2]
[349679812,1737373840675,-821.77,0.00020998,2]
[349679813,1737373840686,-500.0,0.00020998,2]
[349679814,1737373840695,-500.0,0.00020998,2]
[349679815,1737373840704,-3677.48,0.00020998,2]
[349679816,1737373840715,-535.72,0.00020998,2]
[349679817,1737373840726,-2175.64,0.00020998,2]
[349679818,1737373840735,-1496.99,0.00020998,2]
[349679819,1737373840745,-500.0,0.00020998,2]
[349679820,1737373840754,-2515.19,0.00020998,2]
[349679821,1737373840765,-500.0,0.00020998,2]
[349679822,1737373840774,-500.0,0.00020998,2]
[349679823,1737373840783,-1494.33,0.00020998,2]
[349679824,1737373840793,-874.53,0.00020998,2]
[349679825,1737373840802,-3959.56,0.00020998,2]
[349679826,1737373840811,-500.0,0.00020998,2]
[349679827,1737373840821,-2350.02,0.00020998,2]
[349679828,1737373840830,-500.0,0.00020998,2]
[349679829,1737373840840,-2011.03,0.00020998,2]
[349679830,1737373840849,-1277.8,0.00020998,2]
[349679831,1737373840858,-500.0,0.00020998,2]
[349679832,1737373840868,-500.0,0.00020998,2]
[349679833,1737373840877,-500.0,0.00020998,2]
[349679834,1737373840887,-500.0,0.00020998,2]
[349679835,1737373840896,-500.0,0.00020998,2]
[349679836,1737373840905,-3135.93,0.00020998,2]
[349679837,1737373840916,-500.0,0.00020998,2]
[349679838,1737373840925,-1150.87,0.00020998,2]
[349679839,1737373840934,-500.0,0.00020998,2]
[349679840,1737373840943,-1008.61,0.00020998,2]
[349679841,1737373840956,-500.0,0.00020998,2]
[349679843,1737373840965,-500.0,0.00020998,2]
[349679845,1737373840977,-1242.28,0.00020998,2]
[349679847,1737373840987,-2682.27,0.00020998,2]
[349679849,1737373840997,-500.0,0.00020998,2]
[349679851,1737373841007,-1966.68,0.00020998,2]
[349679853,1737373841016,-500.0,0.00020998,2]
[349679855,1737373841026,-500.0,0.00020998,2]
[349679857,1737373841035,-500.0,0.00020998,2]
[349679859,1737373841044,-973.81,0.00020998,2]
[349679861,1737373841053,-1573.01,0.00020998,2]
[349679863,1737373841062,-500.0,0.00020998,2]
[349679865,1737373841070,-724.81,0.00020998,2]
[349679867,1737373841079,-2400.9,0.00020998,2]
[349679869,1737373841089,-512.40978,0.00020998,2]
[349679871,1737373841098,-500.0,0.00020998,2]
[349679873,1737373841108,-500.0,0.00020998,2]
[349679875,1737373841117,-7179.5,0.00020998,2]
[349679877,1737373841126,-1455.19,0.00020998,2]
[349679879,1737373841136,-1337.8,0.00020998,2]
[349679881,1737373841145,-500.0,0.00020998,2]
[349679883,1737373841156,-1012.4,0.00020998,2]
[349679885,1737373841165,-811.61,0.00020998,2]
[349679887,1737373841174,-537.07,0.00020998,2]
[349679889,1737373841183,-2529.65,0.00020998,2]
[349679891,1737373841192,-500.0,0.00020998,2]
[349679893,1737373841202,-500.0,0.00020998,2]
[349679895,1737373841212,-4593.18,0.00020998,2]
[349679897,1737373841222,-1941.34,0.00020998,2]
[349679899,1737373841232,-500.74424708,0.00020998,2]
[349679901,1737373841241,-500.0,0.00020998,2]
[349679903,1737373841250,-500.0,0.00020998,2]
[349679905,1737373841260,-3282.68,0.00020998,2]
[349679907,1737373841269,-500.0,0.00020998,2]
[349679909,1737373841279,-500.0,0.00020998,2]
[349679911,1737373841288,-4242.93,0.00020998,2]
[349679913,1737373841298,-609.82,0.00020998,2]
[349679915,1737373841308,-500.0,0.00020998,2]
[349679917,1737373841318,-77440.30670387,0.00020999,2]
[349679919,1737373841327,-500.0,0.00020999,2]
[349679921,1737373841337,-228.19442843,0.00020999,2]
[349679923,1737373841347,-500.0,0.00020999,2]
[349679925,1737373841357,-500.0,0.00020999,2]
[349679927,1737373841366,-500.0,0.00020999,2]
[349679929,1737373841375,-500.0,0.00020999,2]
[349679931,1737373841384,-500.0,0.00020999,2]
[349679933,1737373841396,-500.0,0.00020999,2]
[349679935,1737373841406,-500.0,0.00020999,2]
[349679937,1737373841416,-500.0,0.00020999,2]
[349679939,1737373841426,-503.78137706,0.00020999,2]
[349679941,1737373841435,-500.0,0.00020999,2]
[349679943,1737373841445,-500.0,0.00020999,2]
[349679945,1737373841455,-500.0,0.00020999,2]
[349679947,1737373841465,-500.0,0.00020999,2]
[349679949,1737373841476,-609.48088401,0.00020999,2]
[349679951,1737373841485,-500.0,0.00020999,2]
[349679953,1737373841495,-288.57448603,0.00020999,2]
[349679955,1737373841504,-500.0,0.00020999,2]
[349679957,1737373841513,-505.65172051,0.00020999,2]
[349679959,1737373841523,-500.0,0.00020999,2]
[349679961,1737373841532,-500.0,0.00020999,2]
[349679963,1737373841541,-500.0,0.00020999,2]
[349679965,1737373841550,-500.0,0.00020999,2]
[349679967,1737373841560,-500.0,0.00020999,2]
[349679969,1737373841569,-500.0,0.00020999,2]
[349679971,1737373841579,-500.0,0.00020999,2]
[349679973,1737373841588,-500.0,0.00020999,2]
[349679975,1737373841597,-981.26,0.00020999,2]
[349679977,1737373841607,-220.52036751,0.00020999,2]
[349679979,1737373841616,-500.0,0.00020999,2]
[349679981,1737373841625,-500.0,0.00020999,2]